bitfinex/quotes_BTCUSD_20250709
["timestamp","ask_amount","ask_price","bid_price","bid_amount"]
[1752073949482,0.34496787,109110.0,109100.0,0.0999946]
[1752073949694,0.34496787,109110.0,109100.0,0.1941146]
[1752073949941,0.34496787,109110.0,109100.0,0.2421146]
[1752073950581,0.34496787,109110.0,109100.0,0.0999946]
[1752073950779,0.34496787,109110.0,109100.0,0.05113959]
[1752073950993,0.34496787,109110.0,109100.0,0.00313959]
[1752073951215,0.34496787,109110.0,109100.0,0.05113959]
[1752073951688,0.41200514,109110.0,109100.0,0.00313959]
[1752073951905,0.41200514,109110.0,109100.0,0.19321959]
[1752073952555,0.41200514,109110.0,109100.0,0.14521959]
[1752073953195,0.41200514,109110.0,109100.0,0.19321959]
[1752073953196,0.76537426,109110.0,109100.0,0.19321959]
[1752073953415,0.76537426,109110.0,109100.0,0.05113959]
[1752073953629,0.76537426,109110.0,109100.0,0.05013959]
[1752073954465,0.76537426,109110.0,109100.0,0.04813959]
[1752073954645,0.76537426,109110.0,109100.0,0.04913959]
[1752073956334,0.76537426,109110.0,109100.0,0.04813959]
[1752073956744,0.76737426,109110.0,109100.0,0.00013959]
[1752073956947,0.76737426,109110.0,109100.0,0.04813959]
[1752073957150,0.34696787,109110.0,109100.0,0.04813959]
[1752073957364,0.34696787,109110.0,109100.0,0.40150871]
[1752073957588,0.34796787,109110.0,109100.0,0.04813959]
[1752073958443,0.34696787,109110.0,109100.0,0.04813959]
[1752073958880,0.70033699,109110.0,109100.0,0.04913959]
[1752073959082,0.79177392,109110.0,109100.0,0.04913959]
[1752073959430,0.78977392,109110.0,109100.0,0.04913959]
[1752073961032,0.78977392,109110.0,109100.0,0.04813959]
[1752073961249,0.78977392,109110.0,109100.0,0.00013959]
[1752073961654,0.79077392,109110.0,109100.0,0.00013959]
[1752073961837,0.79077392,109110.0,109100.0,0.04813959]
[1752073962044,0.79077392,109110.0,109100.0,0.00013959]
[1752073962586,0.79277392,109110.0,109100.0,0.04813959]
[1752073962797,0.4394048,109110.0,109100.0,0.04813959]
[1752073963001,0.79277392,109110.0,109100.0,0.04813959]
[1752073964262,0.4394048,109110.0,109100.0,0.04813959]
[1752073964470,0.79277392,109110.0,109100.0,0.04813959]
[1752073965081,0.49000787,109110.0,109100.0,0.04813959]
[1752073966074,0.48800787,109110.0,109100.0,0.04813959]
[1752073966272,0.48800787,109110.0,109100.0,0.40150871]
[1752073966695,0.34596787,109110.0,109100.0,0.40150871]
[1752073967043,0.46170787,109110.0,109100.0,0.40150871]
[1752073967251,0.90773626,109110.0,109100.0,0.04813959]
[1752073967379,0.90673626,109110.0,109100.0,0.04813959]
[1752073967595,0.90673626,109110.0,109100.0,0.04913959]
[1752073968047,0.90673626,109110.0,109100.0,0.00113959]
[1752073968208,0.83967699,109110.0,109100.0,0.04913959]
[1752073969067,0.83967699,109110.0,109100.0,0.04813959]
[1752073969253,0.84167699,109110.0,109100.0,0.04813959]
[1752073969424,0.34726787,109110.0,109100.0,0.04813959]
[1752073969617,0.48926787,109110.0,109100.0,0.04813959]
[1752073970314,0.48926787,109110.0,109100.0,0.00013959]
[1752073970525,0.48926787,109110.0,109100.0,0.04813959]
[1752073971276,0.48926787,109110.0,109100.0,0.00013959]
[1752073971630,0.48926787,109110.0,109100.0,0.04813959]
[1752073972052,0.48926787,109110.0,109100.0,0.00013959]
[1752073972243,0.48926787,109110.0,109100.0,0.04813959]
[1752073972442,0.48926787,109110.0,109100.0,0.00013959]
[1752073972694,0.48926787,109110.0,109100.0,0.04813959]
[1752073974070,0.48926787,109110.0,109100.0,0.00013959]
[1752073974477,0.48926787,109110.0,109100.0,0.04813959]
[1752073976211,0.84263699,109110.0,109100.0,0.04813959]
[1752073980691,0.84263699,109110.0,109100.0,0.00013959]
[1752073981074,0.84263699,109110.0,109100.0,0.04813959]
[1752073981280,0.8754979,109110.0,109100.0,0.04813959]
[1752073982696,0.87550414,109110.0,109100.0,0.04813959]
[1752073984982,0.52213502,109110.0,109100.0,0.04813959]
[1752073985726,0.95015452,109110.0,109100.0,0.04813959]
[1752073986079,0.5967854,109110.0,109100.0,0.04813959]
[1752073986281,0.95015452,109110.0,109100.0,0.04813959]
[1752073988303,0.95017773,109110.0,109100.0,0.04813959]
[1752073990100,0.95017773,109110.0,109100.0,0.00013959]
[1752073990302,0.95017773,109110.0,109100.0,0.04813959]
[1752073990525,0.20873486,109090.0,109070.0,0.10139502]
[1752073990726,0.82964819,109080.0,109070.0,0.07629502]
[1752073990924,0.47627907,109080.0,109070.0,0.07629502]
[1752073992346,0.48507619,109080.0,109070.0,0.07629502]
[1752073993078,0.48507619,109080.0,109070.0,0.07729502]
[1752073993693,0.48507619,109080.0,109070.0,0.07629502]
[1752073993894,0.48507619,109080.0,109070.0,0.07929502]
[1752073994095,0.48607619,109080.0,109070.0,0.08429502]
[1752073994967,0.01933474,109080.0,109070.0,0.70958531]
[1752073995174,0.02850138,109080.0,109070.0,0.73708981]
[1752073995431,0.0468362,109080.0,109070.0,0.7370899]
[1752073995993,0.21185397,109080.0,109070.0,0.72792206]
[1752073996192,0.21185397,109080.0,109070.0,0.73709014]
[1752073996729,0.02850231,109080.0,109070.0,0.75542597]
[1752073996937,0.01933473,109080.0,109070.0,0.75542597]
[1752073997524,0.02850156,109080.0,109070.0,0.75542597]
[1752073997936,0.001,109080.0,109070.0,1.09542597]
[1752073998140,0.001,109080.0,109070.0,1.55477287]
[1752073998337,0.001,109080.0,109070.0,1.20140375]
[1752074002313,0.001,109080.0,109070.0,1.55477287]
[1752074003386,0.001,109080.0,109070.0,1.20140375]
[1752074004251,0.01016682,109080.0,109070.0,1.20140375]
[1752074004462,0.001,109080.0,109070.0,1.20140375]
[1752074005752,0.001,109080.0,109070.0,1.55477287]
[1752074008241,0.001,109080.0,109070.0,1.20140375]
[1752074008444,0.001,109080.0,109070.0,1.55477287]
[1752074009598,0.001,109080.0,109070.0,1.20140375]
[1752074009776,0.01933389,109080.0,109070.0,1.20140375]
[1752074010350,0.0285008,109080.0,109070.0,1.34320375]
[1752074011369,0.0285008,109080.0,109070.0,1.34316375]
[1752074011706,0.01933373,109080.0,109070.0,1.34316375]
[1752074011903,0.02850072,109080.0,109070.0,1.34316375]
[1752074012144,0.001,109080.0,109070.0,1.34316375]
[1752074012713,0.001,109080.0,109070.0,1.20140375]
[1752074012914,0.001,109080.0,109070.0,1.34316375]
[1752074013782,0.01016691,109080.0,109070.0,1.34316375]
[1752074014310,0.001,109080.0,109070.0,1.34316375]
[1752074015204,0.01016691,109080.0,109070.0,1.34316375]
[1752074015413,0.001,109080.0,109070.0,1.34316375]
[1752074015616,0.21185314,109080.0,109070.0,0.71455294]
[1752074015818,0.21185372,109080.0,109070.0,1.19715031]
[1752074016052,0.20268656,109080.0,109070.0,0.77766414]
[1752074016259,0.20268656,109080.0,109070.0,0.89198414]
[1752074016260,0.20435166,109080.0,109070.0,0.89198414]
[1752074016476,0.20435166,109080.0,109070.0,1.09368936]
[1752074018236,0.20435166,109080.0,109070.0,0.94280103]
[1752074018467,0.20435166,109080.0,109070.0,0.75026414]
[1752074018681,0.27982206,109080.0,109070.0,0.19861502]
[1752074018897,0.27982206,109080.0,109070.0,0.14976001]
[1752074019320,0.27982206,109080.0,109070.0,0.19861502]
[1752074019804,0.23105166,109080.0,109070.0,0.19861502]
[1752074020245,0.23105166,109080.0,109070.0,0.14976001]
[1752074020436,0.23105166,109080.0,109070.0,0.19861502]
[1752074020804,0.23105166,109080.0,109070.0,0.05689502]
[1752074021014,0.23105166,109080.0,109070.0,0.19861502]
[1752074021223,0.31515898,109080.0,109070.0,0.19861502]
[1752074021638,0.40659591,109080.0,109070.0,0.14976001]
[1752074021846,0.40659591,109080.0,109070.0,0.00804001]
[1752074022065,0.75996503,109080.0,109070.0,0.14976001]
[1752074022503,0.75996503,109080.0,109070.0,0.00804001]
[1752074022720,0.90168503,109080.0,109070.0,0.00804001]
[1752074027009,0.54831591,109080.0,109070.0,0.00804001]
[1752074030044,0.46420859,109080.0,109070.0,0.00804001]
[1752074034992,0.81757771,109080.0,109070.0,0.00804001]
[1752074036083,0.79087771,109080.0,109070.0,0.00804001]
[1752074037344,0.43750859,109080.0,109070.0,0.00804001]
[1752074037975,0.79087771,109080.0,109070.0,0.00804001]
[1752074038395,0.81227771,109080.0,109070.0,0.00804001]
[1752074038801,0.90371464,109080.0,109070.0,0.00804001]
[1752074039139,0.76199464,109080.0,109070.0,0.00804001]
[1752074040656,0.40862552,109080.0,109070.0,0.00804001]
[1752074040865,0.76199464,109080.0,109070.0,0.00804001]
[1752074042983,0.76099464,109080.0,109070.0,0.00304001]
[1752074043398,0.76099464,109080.0,109070.0,0.00104001]
[1752074045874,0.73959464,109080.0,109070.0,0.00104001]
[1752074046097,0.38622552,109080.0,109070.0,0.00104001]
[1752074046305,0.52782552,109080.0,109070.0,0.00104001]
[1752074046507,0.52782552,109080.0,109070.0,0.02154001]
[1752074046508,0.27478859,109080.0,109070.0,0.02154001]
[1752074046713,0.41638859,109080.0,109070.0,0.42376414]
[1752074046911,0.41638859,109080.0,109070.0,0.07039502]
[1752074047772,0.43678859,109080.0,109070.0,0.04989502]
[1752074047996,0.43678859,109080.0,109070.0,0.00104001]
[1752074048207,0.88159464,109080.0,109070.0,0.00104001]
[1752074048409,0.90149464,109080.0,109070.0,0.00104001]
[1752074051952,0.00916825,109070.0,109060.0,0.00244]
[1752074052124,0.67764277,109070.0,109060.0,0.00244]
[1752074052765,0.7053553,109070.0,109060.0,0.00244]
[1752074052958,0.71832777,109070.0,109060.0,0.00244]
[1752074053186,0.23285438,109060.0,109050.0,0.0052031]
[1752074053349,0.81922043,109060.0,109050.0,0.0052031]
[1752074054511,0.82814851,109060.0,109050.0,0.0052031]
[1752074055145,0.82814851,109060.0,109050.0,0.0072031]
[1752074055363,0.91954544,109060.0,109050.0,0.0072031]
[1752074055595,0.91954544,109060.0,109050.0,0.0052031]
[1752074055812,0.92054544,109060.0,109050.0,0.0092031]
[1752074056072,0.92054544,109060.0,109050.0,0.0062031]
[1752074056530,0.92054544,109060.0,109050.0,0.0082031]
[1752074058868,0.54727632,109060.0,109050.0,0.0082031]
[1752074059034,0.90064544,109060.0,109050.0,0.0082031]
[1752074059236,0.92124544,109060.0,109050.0,0.0082031]
[1752074060804,0.596011,109050.0,109040.0,0.1004]
[1752074061024,0.8419404,109050.0,109040.0,0.1004]
[1752074061642,1.19530952,109050.0,109040.0,0.1004]
[1752074062055,1.19530952,109050.0,109040.0,0.1024]
[1752074062259,0.8419404,109050.0,109040.0,0.1024]
[1752074062461,0.48857128,109050.0,109040.0,0.1004]
[1752074062669,0.8419404,109050.0,109040.0,0.1004]
[1752074062875,0.8439404,109050.0,109040.0,0.1004]
[1752074063255,1.19730952,109050.0,109040.0,0.1004]
[1752074063475,1.19730952,109050.0,109040.0,0.09121847]
[1752074063750,1.55185037,109050.0,109040.0,1e-08]
[1752074063940,0.22207872,109030.0,109020.0,0.00244]
[1752074064137,0.85101605,109030.0,109020.0,0.00244]
[1752074064953,0.87161605,109030.0,109020.0,0.00244]
[1752074065169,0.87161605,109030.0,109020.0,0.00290436]
[1752074066036,0.51824693,109030.0,109020.0,0.00290436]
[1752074066258,0.87161605,109030.0,109020.0,0.00290436]
[1752074066903,0.87161605,109030.0,109020.0,0.00390436]
[1752074068618,0.87161605,109030.0,109020.0,0.00490436]
[1752074071207,0.51824693,109030.0,109020.0,0.00490436]
[1752074071935,0.87161605,109030.0,109020.0,0.00490436]
[1752074073655,0.49760693,109030.0,109020.0,0.00490436]
[1752074073863,0.85097605,109030.0,109020.0,0.00490436]
[1752074077228,0.87157605,109030.0,109020.0,0.00490436]
[1752074077647,0.85097605,109030.0,109020.0,0.00490436]
[1752074078777,0.87037605,109030.0,109020.0,0.00490436]
[1752074079315,0.51700693,109030.0,109020.0,0.00490436]
[1752074079564,0.87037605,109030.0,109020.0,0.00490436]
[1752074081176,0.19262503,109020.0,109010.0,0.0056031]
[1752074081334,0.84743673,109020.0,109010.0,0.0056031]
[1752074081794,0.82773673,109020.0,109010.0,0.0268031]
[1752074081997,0.42554196,109020.0,109010.0,0.0268031]
[1752074082185,0.42554196,109020.0,109010.0,0.0473031]
[1752074082389,0.42554196,109020.0,109010.0,0.0493031]
[1752074082801,1.22649734,109020.0,109010.0,0.0076031]
[1752074083220,0.87312822,109020.0,109010.0,0.0076031]
[1752074083464,0.93492634,109020.0,109010.0,0.0086031]
[1752074085941,1.28829546,109020.0,109010.0,0.0086031]
[1752074086156,1.30889546,109020.0,109010.0,0.0086031]
[1752074086387,1.30889546,109020.0,109000.0,0.0064]
[1752074086388,0.2121427,109010.0,109000.0,0.0064]
[1752074086822,0.59727527,109000.0,108990.0,1e-08]
[1752074087049,0.21227805,108990.0,108980.0,0.01199501]
[1752074087248,0.9400041,108990.0,108980.0,0.01199501]
[1752074088258,1.32725059,108990.0,108980.0,0.01199501]
[1752074088583,0.20188982,108970.0,108960.0,0.1004]
[1752074088803,0.92961587,108970.0,108960.0,0.10053962]
[1752074089009,0.57624675,108970.0,108960.0,0.11983962]
[1752074089901,0.57624675,108970.0,108960.0,0.12183962]
[1752074090385,0.57624675,108970.0,108960.0,0.11983962]
[1752074090801,0.61885803,108970.0,108960.0,0.11983962]
[1752074091018,0.62185803,108970.0,108960.0,0.12083962]
[1752074091235,0.62285803,108970.0,108960.0,0.12083962]
[1752074092867,0.62285803,108970.0,108960.0,0.14083962]
[1752074093081,0.29732675,108970.0,108960.0,0.14083962]
[1752074093294,0.43880675,108970.0,108960.0,0.49420874]
[1752074093494,0.43880675,108970.0,108960.0,0.14083962]
[1752074095973,0.43880675,108970.0,108960.0,0.12083962]
[1752074096352,0.79217587,108970.0,108960.0,0.10153962]
[1752074096596,0.9040128,108970.0,108960.0,0.10153962]
[1752074097019,0.55064368,108970.0,108960.0,0.10153962]
[1752074097229,0.9040128,108970.0,108960.0,0.10153962]
[1752074098421,0.55064368,108970.0,108960.0,0.10153962]
[1752074098625,0.9040128,108970.0,108960.0,0.10153962]
[1752074100356,0.38876368,108970.0,108960.0,0.12273962]
[1752074100553,0.29732675,108970.0,108960.0,0.54456375]
[1752074101197,0.20588982,108970.0,108960.0,0.19119463]
[1752074101410,0.20588982,108970.0,108960.0,0.54456375]
[1752074102235,0.19671341,108970.0,108960.0,0.54456375]
[1752074102870,0.19671341,108970.0,108960.0,0.19119463]
[1752074103047,0.19671341,108970.0,108960.0,0.54456375]
[1752074103280,0.19671341,108970.0,108960.0,0.89793287]
[1752074103496,0.20588982,108970.0,108960.0,1.17129687]
[1752074103703,0.21506641,108970.0,108960.0,0.19119463]
[1752074103931,0.21506641,108970.0,108960.0,0.90711054]
[1752074104144,0.21506641,108970.0,108960.0,0.89793287]
[1752074104360,0.20589,108970.0,108960.0,0.23494624]
[1752074104581,0.20589,108970.0,108960.0,0.54456375]
[1752074105012,0.20589,108970.0,108960.0,0.55374134]
[1752074105202,0.01317624,108970.0,108960.0,1.1181959]
[1752074105431,0.20588932,108970.0,108960.0,1.12737307]
[1752074105652,0.01317624,108970.0,108960.0,1.12737307]
[1752074105868,0.20588949,108970.0,108960.0,1.20045574]
[1752074106071,0.20588949,108970.0,108960.0,1.22801425]
[1752074106274,0.20588949,108970.0,108960.0,1.21883666]
[1752074106464,0.20588949,108970.0,108960.0,1.20965949]
[1752074106906,0.2058894,108970.0,108960.0,1.21883658]
[1752074107142,0.2150659,108970.0,108960.0,1.21883666]
[1752074107570,0.21506582,108970.0,108960.0,1.19127815]
[1752074107811,0.21506658,108970.0,108960.0,0.47536266]
[1752074108038,0.20589008,108970.0,108960.0,0.63600068]
[1752074108456,0.20589008,108970.0,108960.0,0.82873178]
[1752074108688,0.20589008,108970.0,108960.0,0.63600068]
[1752074108894,0.20589008,108970.0,108960.0,0.64517827]
[1752074109373,0.1967135,108970.0,108960.0,0.63600068]
[1752074109786,0.1967135,108970.0,108960.0,0.83790953]
[1752074110020,0.1967135,108970.0,108960.0,0.63600068]
[1752074110230,0.1967135,108970.0,108960.0,0.82873178]
[1752074110432,0.1967135,108970.0,108960.0,0.63600068]
[1752074110565,0.1967135,108970.0,108960.0,0.64517835]
[1752074111016,0.20588949,108970.0,108960.0,0.85626429]
[1752074111199,0.21506607,108970.0,108960.0,1.21881092]
[1752074111379,0.22424282,108970.0,108960.0,1.20963325]
[1752074111584,0.21506607,108970.0,108960.0,1.20963316]
[1752074111959,0.21506607,108970.0,108960.0,1.20963325]
[1752074112079,0.19671299,108970.0,108960.0,1.21881034]
[1752074112287,0.20588949,108970.0,108960.0,1.21881034]
[1752074112782,0.01317624,108970.0,108960.0,1.55881034]
[1752074112985,0.01317624,108970.0,108960.0,1.65024727]
[1752074112986,0.02135231,108970.0,108960.0,1.65024727]
[1752074113204,0.00917607,108970.0,108960.0,1.64924727]
[1752074113496,0.00917607,108970.0,108960.0,1.65024727]
[1752074113715,0.29355529,108980.0,108970.0,0.29174525]
[1752074113950,0.29355529,108980.0,108970.0,0.8779513]
[1752074114155,0.08249237,108980.0,108970.0,0.89630438]
[1752074114362,0.1008436,108980.0,108970.0,0.90548062]
[1752074114570,0.10084351,108980.0,108970.0,1.24548062]
[1752074114790,0.10084343,108980.0,108970.0,1.24548062]
[1752074115006,0.002,108980.0,108970.0,1.24648062]
[1752074115223,0.002,108980.0,108970.0,1.3524584]
[1752074115438,0.002,108980.0,108970.0,1.70582752]
[1752074115697,0.003,108980.0,108970.0,1.70582752]
[1752074115932,0.003,108980.0,108970.0,1.8057909]
[1752074116138,0.002,108980.0,108970.0,1.8057909]
[1752074116564,0.002,108980.0,108970.0,1.8078309]
[1752074116776,0.11001276,109000.0,108990.0,0.25988251]
[1752074117032,0.11001276,109000.0,108990.0,1.19973456]
[1752074117033,0.11001268,109000.0,108990.0,1.19973456]
[1752074117260,0.10083854,109000.0,108990.0,1.19973456]
[1752074117512,0.09166449,109000.0,108990.0,1.19973456]
[1752074117735,0.09166449,109000.0,108990.0,1.20892981]
[1752074117941,0.08249069,109000.0,108990.0,1.54892981]
[1752074118597,0.07331714,109000.0,108990.0,1.54892981]
[1752074119295,0.07331714,109000.0,108990.0,1.55092981]
[1752074119907,0.07331714,109000.0,108990.0,1.65694759]
[1752074120126,0.0440372,109010.0,109000.0,0.63946315]
[1752074120332,0.002,109010.0,109000.0,1.11241985]
[1752074120548,0.01117288,109010.0,109000.0,1.11241985]
[1752074120788,0.01117279,109010.0,109000.0,1.11241985]
[1752074120991,0.02034575,109010.0,109000.0,1.11241985]
[1752074121423,0.02080962,109010.0,109000.0,1.11241985]
[1752074121854,0.01163675,109010.0,109000.0,1.11241985]
[1752074122081,0.01263675,109010.0,109000.0,1.11441985]
[1752074122494,0.00346387,109010.0,109000.0,1.11441985]
[1752074122727,0.01263666,109010.0,109000.0,1.11541985]
[1752074122964,0.03098267,109010.0,109000.0,1.11541985]
[1752074123173,0.04015597,109010.0,109000.0,1.11541985]
[1752074123620,0.03098267,109010.0,109000.0,1.11541985]
[1752074123824,0.03098267,109010.0,109000.0,1.11545985]
[1752074123976,0.04015597,109010.0,109000.0,1.11545985]
[1752074124209,0.03098267,109010.0,109000.0,1.11545985]
[1752074124614,0.22362528,109010.0,109000.0,0.76209073]
[1752074124838,0.22362579,109010.0,109000.0,1.10628613]
[1752074125050,0.04015639,109010.0,109000.0,1.26595382]
[1752074125270,0.01263675,109010.0,109000.0,1.27512754]
[1752074125471,0.02180979,109010.0,109000.0,1.27512754]
[1752074126083,0.01263675,109010.0,109000.0,1.27512754]
[1752074126507,0.02180988,109010.0,109000.0,1.27512754]
[1752074126929,0.02180979,109010.0,109000.0,1.27512754]
[1752074127852,0.030983,109010.0,109000.0,1.27512754]
[1752074128068,0.0401563,109010.0,109000.0,1.27512754]
[1752074128526,0.030983,109010.0,109000.0,1.27512754]
[1752074128743,0.02180979,109010.0,109000.0,1.27512754]
[1752074129197,0.21445249,109010.0,109000.0,0.79321478]
[1752074129418,0.20527995,109010.0,109000.0,1.12719532]
[1752074129638,0.20527995,109010.0,109000.0,1.15471731]
[1752074129861,0.21445342,109010.0,109000.0,1.15471731]
[1752074130086,0.02181021,109010.0,109000.0,1.18429103]
[1752074130305,0.02181021,109010.0,109000.0,1.17511748]
[1752074130306,0.21445299,109010.0,109000.0,1.17511748]
[1752074130738,0.21445299,109010.0,109000.0,1.14554351]
[1752074130961,0.20527995,109010.0,109000.0,1.13636946]
[1752074131178,0.20527995,109010.0,109000.0,1.14554351]
[1752074131400,0.20527995,109010.0,109000.0,1.12656683]
[1752074131625,0.21445342,109010.0,109000.0,1.12656683]
[1752074131838,0.21445342,109010.0,109000.0,1.11739286]
[1752074132051,0.21445342,109010.0,109000.0,1.12656666]
[1752074132297,0.21445342,109010.0,109000.0,1.23780359]
[1752074132947,0.02181021,109010.0,109000.0,1.24697731]
[1752074133180,0.02180962,109010.0,109000.0,1.24697731]
[1752074133399,0.00346387,109010.0,109000.0,1.33841424]
[1752074134023,0.01263666,109010.0,109000.0,1.33841424]
[1752074134456,0.00346387,109010.0,109000.0,1.33841424]
[1752074134914,0.01263666,109010.0,109000.0,1.33837424]
[1752074135128,0.03098258,109010.0,109000.0,1.33837424]
[1752074135347,0.04932917,109010.0,109000.0,1.33837424]
[1752074135760,0.04932909,109010.0,109000.0,1.33837424]
[1752074136431,0.23279908,109010.0,109000.0,0.50313194]
[1752074136660,0.23279908,109010.0,109000.0,1.09900458]
[1752074136661,0.23465342,109010.0,109000.0,1.09900458]
[1752074136915,0.22548012,109010.0,109000.0,0.88654413]
[1752074137769,0.22548012,109010.0,109000.0,0.74526413]
[1752074137994,0.22548012,109010.0,109000.0,0.14432]
[1752074138214,0.22548012,109010.0,109000.0,0.49768912]
[1752074138425,0.22548012,109010.0,109000.0,0.54654413]
[1752074138634,0.22548012,109010.0,109000.0,0.49768912]
[1752074138816,0.22548012,109010.0,109000.0,0.54654413]
[1752074145473,0.22548012,109010.0,109000.0,0.05189501]
[1752074145676,0.24538012,109010.0,109000.0,0.19317501]
[1752074146832,0.24538012,109010.0,109000.0,0.05189501]
[1752074147035,0.24538012,109010.0,109000.0,0.19317501]
[1752074147306,0.29559519,109010.0,109000.0,0.19317501]
[1752074147514,0.29559519,109010.0,109000.0,0.19313501]
[1752074147980,0.38703212,109010.0,109000.0,0.19313501]
[1752074148166,0.33681705,109010.0,109000.0,0.05189501]
[1752074148379,0.33681705,109010.0,109000.0,0.19313501]
[1752074150381,0.33681705,109010.0,109000.0,0.14428]
[1752074150953,0.33681705,109010.0,109000.0,0.00304]
[1752074151171,0.33681705,109010.0,109000.0,0.14428]
[1752074151357,0.42825398,109010.0,109000.0,0.14428]
[1752074153468,0.7816231,109010.0,109000.0,0.14428]
[1752074153667,0.7816231,109010.0,109000.0,0.00304]
[1752074153917,0.42825398,109010.0,109000.0,0.00304]
[1752074157399,0.7816231,109010.0,109000.0,0.00304]
[1752074157753,0.42825398,109010.0,109000.0,0.00304]
[1752074161058,0.46125554,109010.0,109000.0,0.00304]
[1752074161423,0.81462466,109010.0,109000.0,0.00304]
[1752074164890,0.95586466,109010.0,109000.0,0.00304]
[1752074165309,0.46125554,109010.0,109000.0,0.00304]
[1752074165519,0.60249554,109010.0,109000.0,0.00304]
[1752074166164,0.95586466,109010.0,109000.0,0.00304]
[1752074166370,0.60249554,109010.0,109000.0,0.00304]
[1752074166808,0.46125554,109010.0,109000.0,0.00304]
[1752074167046,0.49115861,109010.0,109000.0,0.00304]
[1752074169219,0.23828168,109010.0,109000.0,0.42536413]
[1752074169450,0.19610665,109010.0,109000.0,0.64709889]
[1752074169677,0.19610665,109010.0,109000.0,0.66544708]
[1752074169884,0.19610665,109010.0,109000.0,0.76605747]
[1752074170098,0.01263675,109010.0,109000.0,0.76605697]
[1752074170322,0.03098309,109010.0,109000.0,0.76605697]
[1752074171725,0.03098309,109010.0,109000.0,0.77495873]
[1752074171924,0.21445249,109010.0,109000.0,0.76605697]
[1752074172134,0.22362596,109010.0,109000.0,0.76605697]
[1752074172741,0.04015656,109010.0,109000.0,0.76605697]
[1752074173174,0.22362596,109010.0,109000.0,0.75688325]
[1752074173373,0.22362596,109010.0,109000.0,0.76605697]
[1752074173586,0.04015656,109010.0,109000.0,0.76605697]
[1752074174017,0.22362596,109010.0,109000.0,0.76605697]
[1752074174943,0.04015656,109010.0,109000.0,0.76605697]
[1752074175168,0.030983,109010.0,109000.0,0.76605697]
[1752074175374,0.01263666,109010.0,109000.0,1.10605697]
[1752074176010,0.030983,109010.0,109000.0,1.10605697]
[1752074176430,0.0218097,109010.0,109000.0,1.10605697]
[1752074177267,0.02180962,109010.0,109000.0,1.10605697]
[1752074177500,0.04015587,109010.0,109000.0,1.10605697]
[1752074178314,0.23279865,109010.0,109000.0,1.10605697]
[1752074178679,0.04015587,109010.0,109000.0,1.10605697]
[1752074179296,0.02180962,109010.0,109000.0,1.10605697]
[1752074179748,0.03098266,109010.0,109000.0,1.10605697]
[1752074180173,0.01263666,109010.0,109000.0,1.10605697]
[1752074180400,0.00346387,109010.0,109000.0,1.1974939]
[1752074181029,0.0218097,109010.0,109000.0,1.1974939]
[1752074181247,0.01263666,109010.0,109000.0,1.21462686]
[1752074181689,0.02180962,109010.0,109000.0,1.21462686]
[1752074181890,0.03098266,109010.0,109000.0,1.21462686]
[1752074182954,0.04015587,109010.0,109000.0,1.21462686]
[1752074183166,0.03098266,109010.0,109000.0,1.21462686]
[1752074183397,0.04015587,109010.0,109000.0,1.21462686]
[1752074183627,0.23279865,109010.0,109000.0,1.21462686]
[1752074184113,0.04932925,109010.0,109000.0,1.1974939]
[1752074184556,0.04932917,109010.0,109000.0,1.1974939]
[1752074184982,0.03098266,109010.0,109000.0,1.2146103]
[1752074185422,0.04015579,109010.0,109000.0,1.2146103]
[1752074185628,0.23279857,109010.0,109000.0,1.07730369]
[1752074185841,0.21445325,109010.0,109000.0,1.08647783]
[1752074186058,0.21445325,109010.0,109000.0,1.07575188]
[1752074186933,0.28777039,109010.0,109000.0,0.78248053]
[1752074187156,0.29849726,109010.0,109000.0,0.21017141]
[1752074187364,0.31849726,109010.0,109000.0,0.06901141]
[1752074187580,0.31849726,109010.0,109000.0,0.21017141]
[1752074187841,0.40993419,109010.0,109000.0,0.06901141]
[1752074188066,0.85474024,109010.0,109000.0,0.1613164]
[1752074188283,0.85474024,109010.0,109000.0,0.0201564]
[1752074188723,0.85474024,109010.0,108990.0,4e-05]
[1752074188724,0.00917405,109000.0,108990.0,4e-05]
[1752074188936,1.16696047,109000.0,108990.0,4e-05]
[1752074189150,1.53330206,109000.0,108990.0,4e-05]
[1752074189377,1.17993294,109000.0,108990.0,4e-05]
[1752074190233,1.18493294,109000.0,108990.0,0.00104]
[1752074190448,0.83256382,109000.0,108990.0,0.00104]
[1752074190664,1.18593294,109000.0,108990.0,0.00104]
[1752074190885,1.17200047,109000.0,108990.0,0.00104]
[1752074191110,0.81863135,109000.0,108990.0,0.00104]
[1752074191524,0.82163135,109000.0,108990.0,0.00104]
[1752074191742,0.34047135,109000.0,108990.0,0.00104]
[1752074192025,0.48163135,109000.0,108990.0,0.00104]
[1752074192234,0.57306828,109000.0,108990.0,0.00104]
[1752074194378,0.60607474,109000.0,108990.0,0.00104]
[1752074196905,0.58637474,109000.0,108990.0,0.00104]
[1752074197327,0.58637474,109000.0,108990.0,0.35440912]
[1752074197328,0.35377781,109000.0,108990.0,0.35440912]
[1752074197542,0.33427781,109000.0,108990.0,0.6069672]
[1752074197758,0.20983442,109000.0,108990.0,0.42346413]
[1752074200844,0.20983442,109000.0,108990.0,0.40326413]
[1752074201049,0.20983442,109000.0,108990.0,0.04989501]
[1752074201272,0.2728589,109000.0,108990.0,0.04989501]
[1752074201489,0.41747494,109000.0,108990.0,0.19105501]
[1752074201705,0.43777494,109000.0,108990.0,0.00104]
[1752074202155,0.40479583,109000.0,108990.0,0.00104]
[1752074202578,0.40479583,109000.0,108990.0,0.04989501]
[1752074202795,0.38449583,109000.0,108990.0,0.04989501]
[1752074205357,0.36429583,109000.0,108990.0,0.04989501]
[1752074205584,0.30127135,109000.0,108990.0,0.42366413]
[1752074205796,0.20983442,109000.0,108990.0,0.42366413]
[1752074205997,0.20983442,109000.0,108990.0,0.64661733]
[1752074206421,0.20983442,109000.0,108990.0,0.63744235]
[1752074206625,0.20983442,109000.0,108990.0,0.64661733]
[1752074206847,0.20983442,109000.0,108990.0,0.63744235]
[1752074207047,0.19148623,109000.0,108990.0,0.44476413]
[1752074207928,0.19148623,109000.0,108990.0,0.63744226]
[1752074208270,0.19148623,109000.0,108990.0,0.44476413]
[1752074208473,0.19148623,109000.0,108990.0,0.6282672]
[1752074208972,0.19148623,109000.0,108990.0,0.63744226]
[1752074209202,0.19148623,109000.0,108990.0,0.44476413]
[1752074209950,0.19148623,109000.0,108990.0,0.6282672]
[1752074210182,0.19148623,109000.0,108990.0,0.63744226]
[1752074210383,0.19148623,109000.0,108990.0,0.44476413]
[1752074210588,0.19148623,109000.0,108990.0,0.42366413]
[1752074212775,0.21078623,109000.0,108990.0,0.40326413]
[1752074213314,0.19148623,109000.0,108990.0,0.42256413]
[1752074214896,0.19148623,109000.0,108990.0,0.61524235]
[1752074215308,0.19148623,109000.0,108990.0,0.42256413]
[1752074216320,0.19148623,109000.0,108990.0,0.6060672]
[1752074216496,0.01717372,109000.0,108990.0,0.79577206]
[1752074216708,0.21900831,109000.0,108990.0,1.18128202]
[1752074216929,0.23735659,109000.0,108990.0,0.81873817]
[1752074217129,0.22818287,109000.0,108990.0,0.82791307]